bitfinex-derivatives/quotes_BTCF0:USTF0_20250903
["timestamp","ask_amount","ask_price","bid_price","bid_amount"]
[1756930358877,1.87814615,112290.0,112280.0,0.85616]
[1756930359082,1.92617872,112290.0,112280.0,0.85616]
[1756930359270,1.92617872,112290.0,112280.0,0.0304]
[1756930359476,2.17617872,112290.0,112280.0,0.84188]
[1756930359683,2.17717872,112290.0,112280.0,0.84188]
[1756930359870,2.17717872,112290.0,112280.0,0.0304]
[1756930360078,2.17717872,112290.0,112280.0,0.81589]
[1756930360279,2.17717872,112290.0,112280.0,0.81144]
[1756930361186,2.17717872,112290.0,112270.0,1.8967]
[1756930361386,0.36479909,112280.0,112270.0,1.8967]
[1756930361576,0.36479909,112280.0,112270.0,2.71259]
[1756930361577,0.38616888,112280.0,112270.0,2.71259]
[1756930362578,0.38616888,112280.0,112270.0,2.71359]
[1756930365687,0.74696888,112280.0,112270.0,2.71359]
[1756930368893,0.74696888,112280.0,112270.0,1.90215]
[1756930369188,1.05909145,112280.0,112270.0,2.71351]
[1756930371592,1.05909145,112280.0,112270.0,1.90215]
[1756930371792,1.05909145,112280.0,112270.0,2.71351]
[1756930372093,1.05909514,112280.0,112270.0,2.71351]
[1756930372298,2.17774241,112280.0,112270.0,0.00545]
[1756930372592,2.19374957,112280.0,112270.0,0.44028]
[1756930372790,2.34302737,112280.0,112270.0,0.44028]
[1756930373791,0.03834,112270.0,112260.0,0.81501]
[1756930373992,0.82796276,112270.0,112260.0,0.81501]
[1756930374193,0.84933255,112270.0,112260.0,0.81501]
[1756930374996,0.84933255,112270.0,112260.0,0.81601]
[1756930375197,2.12970615,112270.0,112260.0,0.79376]
[1756930375392,2.19372982,112270.0,112260.0,0.79376]
[1756930375594,2.19372982,112270.0,112260.0,0.81801]
[1756930377097,2.12970615,112270.0,112260.0,0.81801]
[1756930377596,2.19372982,112270.0,112260.0,0.81801]
[1756930379101,2.12970615,112270.0,112260.0,0.81801]
[1756930379290,1.87970615,112270.0,112260.0,0.81801]
[1756930380405,1.92764582,112270.0,112260.0,0.81801]
[1756930380596,1.92764582,112270.0,112260.0,0.02725]
[1756930381199,2.17764582,112270.0,112260.0,0.003]
[1756930384809,2.17764582,112270.0,112230.0,1.89623]
[1756930384810,0.01409,112260.0,112230.0,1.89623]
[1756930385000,0.38904909,112240.0,112230.0,1.89623]
[1756930385306,0.77121888,112240.0,112230.0,2.70771]
[1756930386209,0.78032454,112240.0,112230.0,2.71371]
[1756930386395,0.78032454,112240.0,112230.0,2.71771]
[1756930386601,0.77121888,112240.0,112230.0,2.71771]
[1756930390305,1.13601797,112240.0,112230.0,1.90623]
[1756930390502,0.77121888,112240.0,112230.0,2.71779]
[1756930392115,0.78026079,112240.0,112230.0,2.71779]
[1756930393711,0.78023895,112240.0,112230.0,2.71779]
[1756930399215,0.82817862,112240.0,112230.0,2.71779]
[1756930399613,1.93663589,112240.0,112230.0,0.84495]
[1756930400510,1.88869622,112240.0,112230.0,0.84495]
[1756930401519,1.89063638,112240.0,112230.0,0.84495]
[1756930402019,1.89063638,112240.0,112230.0,0.85962]
[1756930405124,1.95466005,112240.0,112230.0,0.85962]
[1756930405624,1.89063638,112240.0,112230.0,0.85962]
[1756930407225,1.87657638,112240.0,112230.0,0.85962]
[1756930407926,1.92458861,112240.0,112230.0,0.85962]
[1756930408325,1.92558861,112240.0,112230.0,0.85562]
[1756930408723,1.92658861,112240.0,112230.0,0.84962]
[1756930409922,1.94064861,112240.0,112230.0,0.84962]
[1756930410123,1.94064861,112240.0,112230.0,0.83495]
[1756930410428,1.89263638,112240.0,112230.0,0.83495]
[1756930410927,1.89263638,112240.0,112230.0,0.83499]
[1756930411226,0.46546104,112240.0,112230.0,0.84966]
[1756930411422,1.87857638,112240.0,112230.0,0.84966]
[1756930412126,1.92660258,112240.0,112230.0,0.84966]
[1756930412328,1.87857638,112240.0,112230.0,0.84966]
[1756930414328,1.89263638,112240.0,112230.0,0.83499]
[1756930416228,1.95671209,112240.0,112230.0,0.83499]
[1756930416428,1.95671209,112240.0,112230.0,0.84966]
[1756930420228,1.97269066,112240.0,112230.0,0.78684554]
[1756930420429,1.97269066,112240.0,112230.0,0.81131554]
[1756930421827,0.85373636,112240.0,112230.0,1.07564554]
[1756930422025,0.83778647,112240.0,112230.0,1.07564554]
[1756930422331,0.47698647,112240.0,112230.0,1.07564554]
[1756930422828,0.83778647,112240.0,112230.0,1.07564554]
[1756930423134,0.8601084,112240.0,112230.0,0.83607]
[1756930423332,1.95596079,112240.0,112230.0,0.83607]
[1756930424330,1.8918564,112240.0,112230.0,0.83607]
[1756930424533,1.97191068,112240.0,112230.0,0.83607]
[1756930424919,1.97191068,112240.0,112230.0,0.02447]
[1756930425125,0.03643,112230.0,112220.0,0.44219]
[1756930425425,1.92248933,112230.0,112220.0,0.44219]
[1756930425625,1.94383728,112230.0,112220.0,0.44219]
[1756930428735,0.48270076,112230.0,112220.0,0.44219]
[1756930428931,1.94383728,112230.0,112220.0,0.44219]
[1756930430234,1.87971447,112230.0,112220.0,0.44219]
[1756930431228,1.92782205,112230.0,112220.0,0.44219]
[1756930433638,0.03643,112220.0,112210.0,0.83603]
[1756930433837,0.81061853,112220.0,112210.0,0.83603]
[1756930434028,0.83196648,112220.0,112210.0,0.83603]
[1756930434929,0.83196648,112220.0,112210.0,0.83703]
[1756930435438,0.83196648,112220.0,112210.0,0.85136]
[1756930435832,0.83196648,112220.0,112210.0,0.85236]
[1756930436836,0.83196648,112220.0,112210.0,0.85136]
[1756930436837,0.46668235,112220.0,112210.0,0.85136]
[1756930437030,0.83296648,112220.0,112210.0,0.85136]
[1756930437237,0.83296648,112220.0,112210.0,0.85036]
[1756930437436,0.83396648,112220.0,112210.0,0.85036]
[1756930437632,0.83396648,112220.0,112210.0,0.02447]
[1756930437941,0.83396648,112220.0,112210.0,0.83603]
[1756930440136,1.92981887,112220.0,112210.0,0.02447]
[1756930440342,1.88171447,112220.0,112210.0,0.83607]
[1756930440543,0.78586208,112220.0,112210.0,0.83607]
[1756930442845,0.78586208,112220.0,112210.0,0.02447]
[1756930442846,1.19925061,112220.0,112210.0,0.02447]
[1756930443050,1.19925061,112220.0,112210.0,0.83607]
[1756930443237,1.92981887,112220.0,112210.0,0.83607]
[1756930446145,1.92981887,112220.0,112210.0,0.02447]
[1756930446343,0.03643,112210.0,112200.0,0.02892]
[1756930446550,1.90643358,112210.0,112200.0,0.84052]
[1756930446744,1.92778153,112210.0,112200.0,0.83607]
[1756930446946,1.92778153,112210.0,112200.0,0.02447]
[1756930447144,1.92778153,112210.0,112200.0,0.83607]
[1756930447544,1.92778153,112210.0,112200.0,0.02447]
[1756930447745,1.92778153,112210.0,112200.0,0.83607]
[1756930448046,1.92778153,112210.0,112200.0,0.02447]
[1756930448251,1.92778153,112210.0,112200.0,0.83607]
[1756930448745,1.92978153,112210.0,112200.0,0.83607]
[1756930449261,0.83392914,112210.0,112200.0,0.83607]
[1756930449943,0.83592914,112210.0,112200.0,0.83607]
[1756930450344,0.78786208,112210.0,112200.0,0.83607]
[1756930450544,1.15314621,112210.0,112200.0,0.83607]
[1756930451340,1.15312264,112210.0,112200.0,0.83607]
[1756930452350,1.2011897,112210.0,112200.0,0.83607]
[1756930454346,1.2011897,112210.0,112200.0,0.02447]
[1756930454553,1.2011897,112210.0,112200.0,0.83611]
[1756930456653,0.41344851,112210.0,112200.0,1.10055]
[1756930456848,0.39060851,112210.0,112200.0,1.46135]
[1756930460254,0.43867557,112210.0,112200.0,1.46135]
[1756930460852,0.07339144,112210.0,112200.0,1.46135]
[1756930461059,0.43867557,112210.0,112200.0,1.46135]
[1756930463457,0.4634422,112210.0,112200.0,0.64971]
[1756930463759,0.4783822,112210.0,112200.0,0.64971]
[1756930463952,0.4634422,112210.0,112200.0,1.46183]
[1756930465954,0.4783822,112210.0,112200.0,0.39971]
[1756930466162,0.84371296,112210.0,112200.0,1.19875]
[1756930466460,0.4783822,112210.0,112200.0,1.19875]
[1756930467865,0.4783822,112210.0,112200.0,1.19855]
[1756930468554,0.84371296,112210.0,112200.0,1.19855]
[1756930468965,0.4783822,112210.0,112200.0,0.38527]
[1756930469155,0.4783822,112210.0,112200.0,1.19859]
[1756930469659,0.4783822,112210.0,112200.0,0.38527]
[1756930469859,0.4783822,112210.0,112200.0,0.83767]
[1756930470054,0.8391822,112210.0,112200.0,0.83767]
[1756930470254,1.20451296,112210.0,112200.0,0.02447]
[1756930470454,1.93517448,112210.0,112200.0,0.83763]
[1756930472460,0.03966,112200.0,112190.0,0.02764]
[1756930472658,0.81385782,112200.0,112190.0,0.00445]
[1756930472859,1.10123795,112200.0,112190.0,0.84052]
[1756930473559,1.10223795,112200.0,112190.0,0.84052]
[1756930473761,1.10323795,112200.0,112190.0,0.84052]
[1756930474267,1.03911514,112200.0,112190.0,0.84052]
[1756930475166,1.03911514,112200.0,112190.0,0.83607]
[1756930476368,2.18318241,112200.0,112190.0,0.83607]
[1756930481065,0.45691937,112200.0,112190.0,0.85098]
[1756930481266,0.41337514,112200.0,112190.0,0.85098]
[1756930481470,0.38865514,112200.0,112190.0,1.46178]
[1756930481671,0.38865514,112200.0,112190.0,1.10098]
[1756930482372,0.38865514,112200.0,112190.0,1.10326]
[1756930482373,0.41264514,112200.0,112190.0,1.10326]
[1756930484374,0.7779759,112200.0,112190.0,1.10326]
[1756930484971,0.41264514,112200.0,112190.0,1.10326]
[1756930486266,0.38865514,112200.0,112190.0,1.78406]
[1756930486470,0.38865514,112200.0,112190.0,1.46406]
[1756930486670,0.02332438,112200.0,112190.0,2.14939076]
[1756930487374,0.02332438,112200.0,112190.0,1.46406]
[1756930487675,0.38865514,112200.0,112190.0,1.46406]
[1756930488674,0.02332438,112200.0,112190.0,1.46406]
[1756930488975,0.38865514,112200.0,112190.0,1.46406]
[1756930492877,0.38865514,112200.0,112190.0,1.10326]
[1756930493478,0.38865514,112200.0,112190.0,1.46406]
[1756930493682,0.38865514,112200.0,112190.0,0.6489]
[1756930493882,0.41264514,112200.0,112190.0,1.4647]
[1756930494075,0.41264514,112200.0,112190.0,1.1039]
[1756930494289,0.41264514,112200.0,112190.0,1.4647]
[1756930494489,0.41264514,112200.0,112190.0,1.46915]
[1756930498397,0.41264514,112200.0,112190.0,1.46903]
[1756930498998,0.02332438,112200.0,112190.0,1.46903]
[1756930499196,0.02332438,112200.0,112190.0,1.21903]
[1756930499397,0.38865514,112200.0,112190.0,1.21903]
[1756930499796,0.41264514,112200.0,112190.0,0.85823]
[1756930500902,0.41264514,112200.0,112190.0,1.21967]
[1756930503604,0.04731438,112200.0,112190.0,1.21967]
[1756930503897,0.02332438,112200.0,112190.0,1.21967]
[1756930504101,0.38865514,112200.0,112190.0,1.46967]
[1756930504303,0.02332438,112200.0,112190.0,1.83500076]
[1756930504600,0.02332438,112200.0,112190.0,2.08500076]
[1756930506498,0.02332438,112200.0,112190.0,1.46967]
[1756930507697,0.02332438,112200.0,112190.0,1.82967]
[1756930507905,0.02332438,112200.0,112190.0,1.63967]
[1756930508299,0.02332438,112200.0,112190.0,1.46967]
[1756930509002,0.02332438,112200.0,112190.0,1.83500076]
[1756930509806,0.02332438,112200.0,112190.0,2.12500076]
[1756930511303,0.02332438,112200.0,112190.0,1.83500076]
[1756930512223,0.02332438,112200.0,112190.0,1.83440076]
[1756930513308,0.02332438,112200.0,112190.0,0.65335]
[1756930513511,0.02332438,112200.0,112190.0,1.46899]
[1756930513708,0.04731438,112200.0,112190.0,1.46883]
[1756930513908,0.41264514,112200.0,112190.0,1.46883]
[1756930516111,0.41264514,112200.0,112190.0,0.65335]
[1756930516315,0.41264514,112200.0,112190.0,1.46919]
[1756930516514,0.41264514,112200.0,112190.0,1.46915]
[1756930516810,0.39132076,112200.0,112190.0,1.46915]
[1756930517009,0.41290758,112200.0,112190.0,1.46915]
[1756930517712,0.41290758,112200.0,112190.0,0.65335]
[1756930517911,0.41290758,112200.0,112190.0,1.46899]
[1756930519011,0.41290758,112200.0,112190.0,0.40335]
[1756930519315,0.41290758,112200.0,112190.0,1.21899]
[1756930519502,0.67777758,112200.0,112190.0,1.21879]
[1756930519707,1.04310834,112200.0,112190.0,1.20388]
[1756930519908,0.67777758,112200.0,112190.0,1.20388]
[1756930522814,0.67777758,112200.0,112190.0,0.38844]
[1756930523109,1.04310834,112200.0,112190.0,1.20368]
[1756930523314,0.67777758,112200.0,112190.0,1.20368]
[1756930523514,0.67784002,112200.0,112190.0,1.20368]
[1756930524815,0.67784002,112200.0,112190.0,0.38844]
[1756930525020,0.67784002,112200.0,112190.0,1.20344]
[1756930525313,0.67784002,112200.0,112190.0,0.84264]
[1756930528118,0.31244682,112200.0,112190.0,0.84264]
[1756930528317,0.31244682,112200.0,112190.0,1.21727]
[1756930531226,0.29757682,112200.0,112190.0,1.21727]
[1756930531415,0.02358682,112200.0,112190.0,1.21727]
[1756930531616,0.02358682,112200.0,112190.0,1.9426632]
[1756930531811,0.002,112200.0,112190.0,1.5826632]
[1756930532225,0.02358765,112200.0,112190.0,1.5826632]
[1756930532617,0.02358765,112200.0,112190.0,1.9426632]
[1756930533025,0.02358765,112200.0,112190.0,1.5826632]
[1756930533220,0.02358765,112200.0,112190.0,1.9226632]
[1756930536012,0.02358765,112200.0,112190.0,1.5826632]
[1756930536218,0.02358765,112200.0,112190.0,1.8726632]
[1756930536826,0.02358765,112200.0,112190.0,1.21727]
[1756930538326,0.02358765,112200.0,112190.0,1.50727]
[1756930538826,0.02358765,112200.0,112190.0,1.8726632]
[1756930539626,0.02358765,112200.0,112190.0,1.5826632]
[1756930539830,0.02358765,112200.0,112190.0,1.6026632]
[1756930540426,0.38898085,112200.0,112190.0,1.9026632]
[1756930540726,0.38898085,112200.0,112190.0,1.5826632]
[1756930541030,0.02358765,112200.0,112190.0,1.8226632]
[1756930541629,0.38898085,112200.0,112190.0,1.21679]
[1756930541926,0.38898085,112200.0,112190.0,0.40227]
[1756930542130,0.04784765,112200.0,112190.0,1.21671]
[1756930542426,0.41324085,112200.0,112190.0,1.21671]
[1756930544427,0.41324085,112200.0,112190.0,1.21647]
[1756930544633,0.41324085,112200.0,112190.0,0.40227]
[1756930544833,0.41324085,112200.0,112190.0,1.21647]
[1756930548127,0.41324085,112200.0,112190.0,0.40227]
[1756930548324,0.41324085,112200.0,112190.0,1.21611]
[1756930553841,0.41324085,112200.0,112190.0,0.40227]
[1756930554137,0.41324085,112200.0,112190.0,1.21575]
[1756930554343,0.41324085,112200.0,112190.0,1.21559]
[1756930554942,0.41324085,112200.0,112190.0,0.40227]
[1756930555142,1.77419045,112200.0,112190.0,0.02764]
[1756930555343,1.77419045,112200.0,112190.0,0.84088]
[1756930555735,1.77419045,112200.0,112190.0,0.02764]
[1756930555937,1.82226544,112200.0,112190.0,0.02764]
[1756930556238,2.18306544,112200.0,112190.0,0.81893]
[1756930557337,2.18306544,112200.0,112190.0,0.84285]
[1756930559339,1.93306544,112200.0,112190.0,0.84285]
[1756930562750,0.47149264,112200.0,112190.0,0.84285]
[1756930562950,1.93306544,112200.0,112190.0,0.84285]
[1756930563939,0.83688584,112200.0,112190.0,0.84285]
[1756930565554,1.20227904,112200.0,112190.0,0.84285]
[1756930569145,0.47149264,112200.0,112190.0,0.84285]
[1756930569345,1.20227904,112200.0,112190.0,0.84285]
[1756930569847,0.83688584,112200.0,112190.0,0.84285]
[1756930570250,0.78881085,112200.0,112190.0,0.84285]
[1756930573354,1.15420405,112200.0,112190.0,0.84285]
[1756930573544,0.78881085,112200.0,112190.0,0.84285]
[1756930576057,0.42801085,112200.0,112190.0,0.84285]
[1756930576256,0.78881085,112200.0,112190.0,0.84285]
[1756930576558,1.15420405,112200.0,112190.0,0.84285]
[1756930581159,1.20227904,112200.0,112190.0,0.84285]
[1756930585559,1.20232532,112200.0,112190.0,0.84285]
[1756930586965,1.933158,112200.0,112190.0,0.84285]
[1756930589965,1.93324364,112200.0,112190.0,0.84285]
[1756930600270,1.88516865,112200.0,112190.0,0.84285]
[1756930601370,0.77414963,112200.0,112190.0,0.85636]
[1756930602075,0.47646346,112200.0,112190.0,0.85636]
[1756930606873,0.47646346,112200.0,112190.0,0.84285]
[1756930609876,0.46150346,112200.0,112190.0,1.21716]
[1756930610072,0.09608712,112200.0,112190.0,1.83257634]
[1756930610278,0.02367329,112200.0,112190.0,1.98257634]
[1756930610581,0.02367329,112200.0,112190.0,1.83257634]
[1756930610989,0.02267329,112200.0,112190.0,2.20257634]
[1756930612798,0.02167329,112200.0,112190.0,2.20257634]
[1756930613202,0.02167329,112200.0,112190.0,1.83716]
[1756930613391,0.02167329,112200.0,112190.0,2.20357634]
[1756930613591,0.02167329,112200.0,112190.0,2.20457634]
[1756930614090,0.02167329,112200.0,112190.0,2.29367594]
[1756930614692,0.0001,112210.0,112190.0,2.29367594]
[1756930614893,0.0001,112210.0,112200.0,0.39718]
[1756930615092,0.38690076,112220.0,112200.0,0.55718]
[1756930615293,0.41100076,112220.0,112210.0,0.8491]
[1756930615590,0.41090076,112220.0,112210.0,0.8491]
[1756930616195,0.41090076,112220.0,112210.0,0.85355]
[1756930617303,0.41190076,112220.0,112210.0,0.85355]
[1756930617694,0.41290076,112220.0,112210.0,0.85355]
[1756930618000,0.41190076,112220.0,112210.0,0.85355]
[1756930619001,0.41190076,112220.0,112210.0,0.86268936]
[1756930619301,0.41090076,112220.0,112210.0,0.86268936]
[1756930619903,0.41090076,112220.0,112210.0,0.04996936]
[1756930620101,0.41090076,112220.0,112210.0,0.86264936]
[1756930620289,0.42586076,112220.0,112210.0,0.02732]
[1756930620495,0.42586076,112220.0,112210.0,0.83996]
[1756930622591,0.42686076,112220.0,112210.0,0.83996]
[1756930622795,0.42786076,112220.0,112210.0,0.83996]
[1756930625604,0.41290076,112220.0,112210.0,0.85347]
[1756930626105,0.42786076,112220.0,112210.0,0.85347]
[1756930626806,0.42586076,112220.0,112210.0,0.85347]
[1756930627506,0.42686076,112220.0,112210.0,0.85347]
[1756930627808,0.42786076,112220.0,112210.0,0.85347]
[1756930631610,0.42786076,112220.0,112210.0,0.04083]
[1756930631810,0.42786076,112220.0,112210.0,0.85339]
[1756930632412,0.42786076,112220.0,112210.0,0.04083]
[1756930632609,0.42786076,112220.0,112210.0,0.85339]
[1756930637813,0.42786076,112220.0,112210.0,0.02732]
[1756930638004,0.42786076,112220.0,112210.0,0.83984]
[1756930640014,0.42786076,112220.0,112210.0,0.85356]
[1756930640213,0.47601459,112220.0,112210.0,0.85356]
[1756930641220,0.83681459,112220.0,112210.0,0.85356]
[1756930643118,0.47601459,112220.0,112210.0,0.85356]
[1756930643709,0.83681459,112220.0,112210.0,0.85356]
[1756930645518,0.83668257,112220.0,112210.0,0.85356]
[1756930653721,0.83668257,112220.0,112210.0,0.85344]
[1756930655115,1.08668257,112220.0,112210.0,0.81685]
[1756930655718,1.08668257,112220.0,112210.0,0.84168]
[1756930655917,1.08668257,112220.0,112210.0,0.83723]
[1756930657126,1.08668257,112220.0,112210.0,0.84168]
[1756930658223,1.03852874,112220.0,112210.0,0.84168]
[1756930658418,1.10265155,112220.0,112210.0,0.84168]
[1756930660320,1.08665453,112220.0,112210.0,0.84168]
[1756930663330,2.18250749,112220.0,112210.0,0.00445]
[1756930663627,2.1343817,112220.0,112210.0,0.81677]
[1756930663824,2.19850451,112220.0,112210.0,0.81677]
[1756930664432,2.1343817,112220.0,112210.0,0.81677]
[1756930665426,1.03852874,112220.0,112210.0,0.81677]
[1756930666428,1.40381306,112220.0,112210.0,0.81677]
[1756930667027,2.1343817,112220.0,112210.0,0.81677]
[1756930667328,2.19850451,112220.0,112210.0,0.81677]
[1756930674032,2.19850451,112220.0,112210.0,0.84036]
[1756930674535,2.19850451,112220.0,112210.0,0.02804]
[1756930675236,1.10265155,112220.0,112210.0,0.04303]
[1756930675622,0.48736723,112220.0,112210.0,0.04303]
[1756930675827,0.83769155,112220.0,112210.0,0.29303]
[1756930676027,0.82164393,112220.0,112210.0,0.29303]
[1756930676334,0.79754393,112220.0,112210.0,0.29303]
[1756930676632,0.43674393,112220.0,112210.0,0.65383]
[1756930677229,0.43674393,112220.0,112210.0,0.64938]
[1756930678637,0.43674393,112220.0,112210.0,0.65383]
[1756930679136,0.45930393,112220.0,112210.0,0.65383]
[1756930679335,0.45930393,112220.0,112210.0,0.40383]
[1756930682837,0.47316393,112220.0,112210.0,0.40383]
[1756930683033,0.47316393,112220.0,112210.0,1.21611]
[1756930683941,0.45930393,112220.0,112210.0,1.21611]
[1756930687138,0.45930393,112220.0,112210.0,0.85531]
[1756930687342,0.45930393,112220.0,112210.0,1.21611]
[1756930688545,0.45930393,112220.0,112210.0,0.85531]
[1756930690346,0.46053021,112220.0,112210.0,0.85531]
[1756930693648,0.46053021,112220.0,112210.0,1.21611]
[1756930695347,0.0246107,112220.0,112210.0,1.83139432]
[1756930695743,0.0246107,112220.0,112210.0,1.46611]
[1756930696248,0.38989502,112220.0,112210.0,1.46611]
[1756930705458,0.38980791,112220.0,112210.0,1.46611]
[1756930706554,0.41264791,112220.0,112210.0,0.65383]
[1756930706756,0.41264791,112220.0,112210.0,1.46591]
[1756930707350,0.41264791,112220.0,112210.0,0.65383]
[1756930707759,0.41264791,112220.0,112210.0,1.46591]
[1756930717564,0.41264791,112220.0,112210.0,0.65383]
[1756930717751,0.42696791,112220.0,112210.0,0.65383]
[1756930718063,0.42696791,112220.0,112210.0,1.46583]
[1756930718251,0.67696791,112220.0,112210.0,1.20084]
[1756930718862,0.67696791,112220.0,112210.0,0.38884]
[1756930719055,1.0858431,112220.0,112210.0,0.02804]
[1756930719256,1.0858431,112220.0,112210.0,0.84]
[1756930720060,1.0858431,112220.0,112210.0,0.83555]
[1756930720763,1.08624337,112220.0,112210.0,0.83555]
[1756930720956,1.08624337,112220.0,112210.0,0.84]
[1756930726160,1.03816818,112220.0,112210.0,0.84]
[1756930728768,1.08624337,112220.0,112210.0,0.84]
[1756930729260,1.03816818,112220.0,112210.0,0.84]
[1756930732673,0.67297097,112220.0,112210.0,0.84]
[1756930732866,1.03816818,112220.0,112210.0,0.84]
[1756930733768,1.08624337,112220.0,112210.0,0.84]
[1756930734165,1.03816818,112220.0,112210.0,0.84]
[1756930735465,1.03816818,112220.0,112210.0,0.00445]
[1756930735667,1.03816818,112220.0,112210.0,0.84057]
[1756930739270,0.78816818,112220.0,112210.0,0.84057]
[1756930740374,0.83624337,112220.0,112210.0,0.84057]
[1756930741066,0.46112337,112220.0,112210.0,0.85457]
[1756930744070,0.47532337,112220.0,112210.0,0.84057]
[1756930750478,0.47532337,112220.0,112210.0,0.85513]
[1756930756893,0.46112337,112220.0,112210.0,0.85513]
[1756930757278,0.09592616,112220.0,112210.0,0.85513]
[1756930757477,0.43828337,112220.0,112210.0,1.46593]
[1756930757882,0.43828337,112220.0,112210.0,1.46148]
[1756930758083,0.43828337,112220.0,112210.0,0.85068]
[1756930758386,0.46131337,112220.0,112210.0,0.85056]
[1756930758588,0.46131337,112220.0,112210.0,0.03876]
[1756930758791,0.46131337,112220.0,112210.0,0.85052]
[1756930759090,0.47578337,112220.0,112210.0,0.84041]
[1756930760993,0.47578337,112220.0,112210.0,0.02865]
[1756930761186,0.47578337,112220.0,112210.0,0.84041]
[1756930765595,0.47592356,112220.0,112210.0,0.84041]
[1756930769459,0.47592356,112220.0,112210.0,0.02865]
[1756930769694,0.83672356,112220.0,112210.0,0.84041]
[1756930769890,0.78864837,112220.0,112210.0,0.84041]
[1756930770492,0.8367823,112220.0,112210.0,0.84041]
[1756930772105,1.03864837,112220.0,112210.0,0.83596]
[1756930772798,0.01447,112210.0,112200.0,0.02343]
[1756930772995,1.90777173,112210.0,112200.0,0.02343]
[1756930773198,0.0375,112200.0,112190.0,0.02343]
[1756930773393,0.81299135,112200.0,112190.0,0.83964]
[1756930773598,0.83477604,112200.0,112190.0,0.83964]
[1756930774399,0.83477604,112200.0,112190.0,0.84064]
[1756930775798,0.83477604,112200.0,112190.0,0.83964]
[1756930776185,0.84468593,112200.0,112190.0,0.83964]
[1756930778207,0.79655826,112200.0,112190.0,0.83964]
[1756930780300,0.84468593,112200.0,112190.0,0.83964]
[1756930784300,0.84468593,112200.0,112190.0,0.83519]
[1756930787403,0.84468593,112200.0,112190.0,0.83527]
[1756930792502,0.84468593,112200.0,112190.0,0.84923]
[1756930792699,1.94069813,112200.0,112190.0,0.84923]
[1756930795212,0.46487853,112200.0,112190.0,0.84923]
[1756930795407,1.92622813,112200.0,112190.0,0.84923]
[1756930795602,1.93992813,112200.0,112190.0,0.83527]
[1756930795912,1.93992813,112200.0,112190.0,0.83523]
[1756930797211,1.93992813,112200.0,112190.0,0.02343]
[1756930797409,1.93992813,112200.0,112190.0,0.83523]
[1756930801505,0.0137,112190.0,112180.0,1.88765]
[1756930801712,1.89997241,112190.0,112180.0,2.69945]
[1756930801911,1.9217571,112190.0,112180.0,2.69945]
[1756930802216,1.9447671,112190.0,112180.0,0.8392]
[1756930802611,1.94599338,112190.0,112180.0,0.8392]
[1756930803817,2.01800654,112190.0,112180.0,0.8392]
[1756930804018,2.01800654,112190.0,112180.0,0.8402]
[1756930804417,0.92199434,112190.0,112180.0,0.8402]
[1756930805617,0.92199434,112190.0,112180.0,0.0284]
[1756930805814,1.28733174,112190.0,112180.0,0.0284]
[1756930806119,1.28733174,112190.0,112180.0,0.70296]
[1756930806718,1.28733174,112190.0,112180.0,0.69851]
[1756930806918,2.01800654,112190.0,112180.0,0.69851]
[1756930807814,2.01800654,112190.0,112180.0,0.02395]
[1756930808019,0.03671,112170.0,112160.0,0.03751]
[1756930808317,1.90694792,112170.0,112160.0,0.68323]
[1756930808513,1.92995889,112170.0,112160.0,0.02295]
[1756930808713,1.92995889,112170.0,112160.0,0.83475]
[1756930809018,1.92995889,112170.0,112160.0,0.83675]
[1756930809712,1.92995889,112170.0,112160.0,0.83575]
[1756930810114,1.88187057,112170.0,112160.0,0.83575]
[1756930810313,1.94599338,112170.0,112160.0,0.83875]
[1756930810920,1.94599338,112170.0,112160.0,0.83775]
[1756930811311,1.88187057,112170.0,112160.0,0.83775]
[1756930816419,1.92987259,112170.0,112160.0,0.83775]
[1756930817319,1.88187057,112170.0,112160.0,0.02595]
[1756930817621,0.03855,112140.0,112130.0,0.40984]
[1756930817822,1.52168429,112140.0,112130.0,0.40984]
[1756930818620,1.52291057,112140.0,112130.0,0.40984]
[1756930820019,1.52291057,112140.0,112130.0,0.41184]
[1756930820220,1.52291057,112140.0,112130.0,0.41384]
[1756930824125,0.04695097,112140.0,112130.0,0.41384]
[1756930824327,0.41228837,112140.0,112130.0,0.41384]
[1756930824726,0.42689837,112140.0,112130.0,0.41384]
[1756930827429,0.42733505,112140.0,112130.0,0.41384]
[1756930827925,0.41272505,112140.0,112130.0,1.10464]
[1756930828728,0.41272505,112140.0,112130.0,1.02464]
[1756930834235,0.41272505,112140.0,112130.0,1.45056]
[1756930835231,0.46073033,112140.0,112130.0,1.45056]
[1756930835832,0.83073033,112140.0,112130.0,1.45056]
[1756930838027,0.80679033,112140.0,112130.0,1.45056]
[1756930838228,0.39301097,112140.0,112130.0,1.56633408]
[1756930838732,0.39301097,112140.0,112130.0,1.20056]
[1756930839235,0.44101625,112140.0,112130.0,1.20056]
[1756930839735,0.39301097,112140.0,112130.0,1.65548118]
[1756930839926,0.39301097,112140.0,112130.0,1.56633408]
[1756930840122,0.39301097,112140.0,112130.0,0.75441408]
[1756930840433,0.39301097,112140.0,112130.0,1.20056]
[1756930842735,0.75878505,112140.0,112130.0,1.20056]
[1756930843035,0.78337505,112140.0,112130.0,1.20052]
[1756930845237,0.78337505,112140.0,112130.0,0.38864]
[1756930845536,0.78337505,112140.0,112130.0,1.20052]
[1756930845835,0.78337505,112140.0,112130.0,0.38864]
[1756930846035,0.78337505,112140.0,112130.0,1.20052]
[1756930849931,0.78337505,112140.0,112130.0,0.38864]
[1756930850129,1.89484729,112140.0,112130.0,1.20048]
[1756930850328,0.43175097,112140.0,112130.0,1.20048]
[1756930850535,0.79752505,112140.0,112130.0,1.20048]
[1756930850933,0.41760097,112140.0,112130.0,1.57369408]
[1756930851231,0.39301097,112140.0,112130.0,2.17804128]
[1756930851442,0.39301097,112140.0,112130.0,2.49804128]
[1756930853038,0.13301097,112140.0,112130.0,2.49804128]
[1756930853733,0.13301097,112140.0,112130.0,2.23284128]
[1756930853945,0.13301097,112140.0,112130.0,2.86381536]
[1756930853946,0.00122628,112140.0,112130.0,2.86381536]
[1756930854131,0.0001,112150.0,112140.0,0.1273492]
[1756930854327,0.1,112150.0,112140.0,1.21392328]
[1756930855238,0.1,112150.0,112140.0,1.21492328]
[1756930855640,0.1,112150.0,112140.0,1.21592328]
[1756930856036,0.10122706,112150.0,112140.0,1.21592328]
[1756930857332,0.10122706,112150.0,112140.0,2.02768328]
[1756930861041,0.10122706,112150.0,112140.0,3.91180328]